Cogmind - Beta 10.2 *** ADVENTURER MODE // 2021.04.30 @ 22:13:07 Player: Lonely Shikari Result: Destroyed by D-53 Grenadier with Mini Grenade Launcher Performance ------------- Evolutions (0) 0 Regions Visited (2) 400 Robots Destroyed (16) 80 Value Destroyed (271) 271 Prototype IDs (2) 40 Alien Tech Used (0) 0 Bonus (0) 0 TOTAL SCORE: 791 Bonus ------- None Cogmind --------- Core Integrity 0/250 Matter 300/300 Energy 246/250 System Corruption 0% Temperature Cool (2) Movement Treading (160) Location -10/Mines Parts ------- > --- POWER (1) -------- Ion Engine > --- PROPULSION (2) --- Light Treads Light Treads > --- UTILITY (2) ------ Small Storage Unit Small Storage Unit > --- WEAPON (2) ------- EM Pulse Gun Assault Rifle > --- INVENTORY (8) ---- Large Matter Pod (150) Light Assault Rifle Light Assault Rifle Mining Laser Peak State ------------ > --- POWER ------------ Ion Engine > --- PROPULSION ------- Wheel Compact Wheel > --- UTILITY ---------- Small Storage Unit Small Matter Pod > --- WEAPON ----------- EM Pulse Gun Light Assault Rifle > --- INVENTORY -------- Ion Engine Light Treads Light Treads EM Pulse Gun EM Pulse Gun Light Assault Rifle [Rating: 7] Favorites ----------- Power Ion Engine Engine Ion Engine Propulsion Wheel Treads Light Treads Leg Aluminum Leg Wheel Wheel Utility Small Storage Unit Storage Small Storage Unit Weapon EM Pulse Gun Energy Gun EM Pulse Gun Ballistic Gun Light Assault Rifle Build | -11 -10 -10 ------- Run | Scr Mat Min Slots Evolved . | . . . Power . | . . . Propulsion . | . . . Utility . | . . . Weapon . | . . . Parts Attached 19 | 2 9 8 Power 3 | . 2 1 Engine 3 | . 2 1 Core . | . . . Reactor . | . . . Propulsion 4 | 2 . 2 Treads 2 | . . 2 Leg . | . . . Wheel 2 | 2 . . Hover . | . . . Flight . | . . . Utility 2 | . 2 . Device . | . . . Storage 2 | . 2 . Processor . | . . . Hackware . | . . . Protection . | . . . Artifact . | . . . Weapon 10 | . 5 5 Energy Gun 3 | . 1 2 Energy Cannon . | . . . Ballistic Gun 7 | . 4 3 Ballistic Cannon . | . . . Launcher . | . . . Special Weapon . | . . . Impact Weapon . | . . . Slashing Weapon . | . . . Piercing Weapon . | . . . Special Melee Weapon . | . . . Unidentified Prototypes . | . . . Parts Lost 7 | . 1 6 Power 1 | . . 1 Propulsion 2 | . . 2 Utility . | . . . Weapon 4 | . 1 3 Highest Loss Streak 4 | . 1 4 Average Slot Usage (%) 91 | . 92 89 Engine 13 | . 14 13 Wheel 23 | . 28 16 Storage 24 | . 21 28 Energy Gun 13 | . 14 13 Ballistic Gun 13 | . 13 13 Naked Turns . | . . . Heaviest Build 17 | 11 16 17 Greatest Support 40 | 26 26 40 Greatest Overweight (x) 1 | . . 1 Average Overweight (x) . | . . . Largest Inventory Capacity 8 | 6 8 8 Average Capacity 7 | 6 6 8 Most Carried 7 | 6 7 7 Average Carried 5 | 5 5 4 Final Capacity 8 | 6 8 8 Final Carried 7 | 4 7 4 Class Distribution -------------------- 100% | Mutant Dominant Class ---------------- Mutant | -10/Materials Mutant | -10/Mines Resources | -11 -10 -10 ----------- Run | Scr Mat Min Matter Collected 614 | 200 175 239 Remotely . | . . . Salvage Created 442 | . 233 209 Parts 34 | . 25 9 Haulers Intercepted . | . . . Recyclers Shooed . | . . . Parts Field Recycled . | . . . Retrieved Matter . | . . . Parts Self-Destructed . | . . . Prevented . | . . . Kills | -11 -10 -10 ------- Run | Scr Mat Min Combat Hostiles Destroyed 18 | . 10 8 Guns 18 | . 10 8 Classes Destroyed 4 | . 3 1 Watcher 1 | . 1 . Swarmer 12 | . 9 3 Grunt 3 | . 1 2 Assembled 3 | . . 3 Best Kill Streak 4 | . 4 3 Combat Bots Only 3 | . 3 3 Max Kills in Single Turn 1 | . 1 1 Gunslinging . | . . . Exploded . | . . . Melee . | . . . Uniques/NPCs Destroyed . | . . . Combat | -11 -10 -10 -------- Run | Scr Mat Min Damage Taken 935 | . 348 587 Core 250 | . 78 172 Absorbed by Shields . | . . . Core Remaining (%) 100 | 100 . . Volleys Fired 68 | . 39 29 Largest 2 | . 2 2 Hottest 70 | . 60 70 Shots Fired 131 | . 77 54 Gun 131 | . 77 54 Cannon . | . . . Launcher . | . . . Special . | . . . Kinetic 68 | . 39 29 Thermal 9 | . . 9 Explosive . | . . . Electromagnetic 54 | . 38 16 Robot Hit Streak 23 | . 9 23 Robot Miss Streak 5 | . 5 3 Penetration Max . | . . . Secondary Targets 2 | . . 2 Max Gunslinging Chain 1 | . . 1 Shots Hit Robots 91 | . 47 44 Core Hits 30 | . 15 15 Critical Hits . | . . . Critical Kills . | . . . Critical Parts Destroyed . | . . . Melee Attacks . | . . . Impact . | . . . Slashing . | . . . Piercing . | . . . Sneak Attacks . | . . . Combat Hostiles . | . . . Follow-up Attacks . | . . . Damage Inflicted 774 | . 355 419 Guns 741 | . 322 419 Cannons . | . . . Explosions 33 | . 33 . Melee . | . . . Ramming . | . . . Kinetic 330 | . 111 219 Thermal 146 | . 33 113 Explosive . | . . . Electromagnetic 298 | . 211 87 Impact . | . . . Slashing . | . . . Piercing . | . . . Highest Corruption . | . . . Average Corruption . | . . . Corruption Purged . | . . . Overload Shots . | . . . Overflow Damage 13 | . 13 . Projectiles . | . . . Explosions 13 | . 13 . Melee . | . . . Knockbacks . | . . . Impact . | . . . Kinetic . | . . . Secondary . | . . . Self-Inflicted Damage . | . . . Shots . | . . . Rammed . | . . . Targets Rammed . | . . . Kicked . | . . . Crushed . | . . . Highest Temperature 262 | . 52 262 Average Temperature 61 | . 23 100 Received Heat Transfer 356 | . 12 344 Siege Activations . | . . . Robots Corrupted . | . . . Combat Hostiles . | . . . Parts Fried . | . . . Impact Corruptions . | . . . Robots Melted . | . . . Combat Hostiles . | . . . Parts Melted . | . . . Heat Transferred 383 | . 50 333 Parts Sabotaged . | . . . Parts Stolen . | . . . Parts Stripped . | . . . Power Chain Reactions 1 | . 1 . Missiles Intercepted . | . . . Alert | -11 -10 -10 ------- Run | Scr Mat Min Peak Influence 280 | . 280 134 Initial 54 | . . 54 Average 119 | . 132 100 Maximum Alert Level 1 | . 1 . Low Security (%) 87 | 100 78 100 Level 1 12 | . 21 . Level 2 . | . . . Level 3 . | . . . Level 4 . | . . . Level 5 . | . . . High Security . | . . . Max Security . | . . . Squads Dispatched 1 | . 1 . Investigation 1 | . 1 . Extermination . | . . . Reinforcement . | . . . Assault . | . . . Garrison . | . . . Intercept . | . . . Construction Impeded . | . . . Haulers Reinforced . | . . . Stealth | -11 -10 -10 --------- Run | Scr Mat Min Distress Signals . | . . . Communications Jammed . | . . . Distress Signals . | . . . Times Spotted 46 | . 13 33 Peak Tracking Total 18 | . 3 18 Tactical Retreats 5 | . 2 3 Traps | -11 -10 -10 ------- Run | Scr Mat Min Traps Triggered 3 | . 3 . Indirectly . | . . . Trap Hack Attempts . | . . . Triggered . | . . . Disarmed . | . . . Reprogrammed 3 | . 3 . Reused . | . . . Traps Extracted . | . . . Installed . | . . . Triggered . | . . . Machines | -11 -10 -10 ---------- Run | Scr Mat Min Machines Disabled 2 | . 1 1 Max in Single Turn 1 | . 1 1 Machines Sabotaged . | . . . Garrisons Compromised . | . . . Overloaded Fab Kills . | . . . Fab Network Shutdowns . | . . . Hacking | -11 -10 -10 --------- Run | Scr Mat Min Machines Accessed 6 | . 6 . Terminals 6 | . 6 . Fabricators . | . . . Repair Stations . | . . . Recycling Units . | . . . Scanalyzers . | . . . Garrison Access . | . . . Total Hacks 23 | . 23 . Successful 15 | . 15 . Failed 8 | . 8 . Catastrophic . | . . . Database Lockouts . | . . . Manual 18 | . 18 . Terminals 23 | . 23 . Fabricators . | . . . Repair Stations . | . . . Recycling Units . | . . . Scanalyzers . | . . . Garrison Access . | . . . Terminal Hacks 4 | . 4 . Robot Analysis 1 | . 1 . Prototype ID Bank 1 | . 1 . Reprogram Traps 1 | . 1 . Registered Prototypes 1 | . 1 . Fabricator Hacks . | . . . Repair Station Hacks . | . . . Recycling Unit Hacks . | . . . Scanalyzer . | . . . Garrison Access Hacks . | . . . Unauthorized Hacks 11 | . 11 . Terminals 11 | . 11 . Track 3 | . 3 . Botnet 6 | . 6 . Disrupt 2 | . 2 . Fabricators . | . . . Repair Stations . | . . . Recycling Units . | . . . Scanalyzers . | . . . Garrison Access . | . . . Data Cores Recovered . | . . . Used . | . . . Hacking Detections 5 | . 5 . Full Trace Events 2 | . 2 . Feedback Events . | . . . Feedback Blocked . | . . . Robot Schematics Acquired . | . . . Robots Built . | . . . Matter . | . . . Time . | . . . Total Robot Build Rating . | . . . Part Schematics Acquired . | . . . Parts Built . | . . . Matter . | . . . Time . | . . . Total Part Build Rating . | . . . Parts Repaired . | . . . Time . | . . . Parts Recycled . | . . . Recycled Matter . | . . . Retrieved Matter . | . . . Retrieved Components . | . . . Parts Scanalyzed . | . . . Part Schematics Acquired . | . . . Parts Damaged . | . . . Bothacking | -11 -10 -10 ------------ Run | Scr Mat Min Used RIF Installer . | . . . Robots Hacked . | . . . Non-combat . | . . . Combat . | . . . Robot Hacks Applied . | . . . Relay Couplers Released . | . . . Robots Rewired . | . . . Allies Hacked . | . . . Hacks Repelled . | . . . Allies | -11 -10 -10 -------- Run | Scr Mat Min Total Allies 6 | . . 6 Largest Group 6 | . . 6 Highest-Rated Group 114 | . . 114 Highest-Rated Ally 31 | . . 31 Total Orders . | . . . Ally Attacks 31 | . . 31 Total Damage 383 | . . 383 Kills 6 | . . 6 Allies Corrupted . | . . . Allies Melted . | . . . Intel | -11 -10 -10 ------- Run | Scr Mat Min Robot Analysis Total 1 | . 1 . Derelict Logs Recovered . | . . . Drone Launches . | . . . Drone Recoveries . | . . . Exploration | -11 -10 -10 ------------- Run | Scr Mat Min Turns Passed 855 | 3 507 345 Spaces Moved 669 | 1 411 257 Core . | . . . Treads 11 | . . 11 Legs . | . . . Wheels 658 | 1 411 246 Hover . | . . . Flight . | . . . Fastest Speed 90 | 90 90 90 Average Speed 91 | 90 90 92 Slowest Speed 160 | 90 90 160 Overloaded Moves . | . . . Propulsion Burnouts . | . . . Robots Hopped . | . . . Cave-ins Triggered . | . . . Exploration Rate (%) 47 | 2 74 66 Regions Visited 2 Branch Regions 1 Pre-discovered Areas . | . . . Known Exits Taken . | . . . Unknown Exits Taken 2 | 1 1 . Scrap Searched 1 | . . 1 Spaces Dug . | . . . Terrain Destroyed 4 | . 4 . Melee . | . . . Projectile . | . . . AOE 4 | . 4 . Terrain Rammed . | . . . Walls Destroyed . | . . . Machines Disabled . | . . . Actions | -11 -10 -10 --------- Run | Scr Mat Min Total 798 | 4 480 314 Wait 25 | . 9 16 Move 667 | . 410 257 Hop . | . . . Pick Up 6 | . 4 2 Fast Attach 5 | . 4 1 Attach 9 | 2 1 6 Detach 3 | . 2 1 Swap 5 | . 4 1 Drop 10 | 2 7 1 Fire 68 | . 39 29 Melee . | . . . Ram . | . . . Kick . | . . . Crush . | . . . Escape Stasis . | . . . Rewire . | . . . Trap . | . . . Miscellaneous . | . . . Route ------- -11/Scrapyard -10/Materials (discovered 3 exits: [*Mat] / [*Min x2]) -10/Mines (discovered 1 exit: [*Mat]) History --------- Turn | Location | Event 4 | -11/Scrapyard | Discovered new exit (range 0) 4 | -11/Scrapyard | Entered Materials 6 | -10/Materials | Discovered new exit (range 10) 251 | -10/Materials | Discovered new exit (range 16) 339 | -10/Materials | Build established: Mutant 478 | -10/Materials | Discovered new exit (range 6) 511 | -10/Materials | Entered Mines 532 | -10/Mines | Core integrity fell below 50% 570 | -10/Mines | Lost 4 parts (1p3w) 596 | -10/Mines | Discovered new exit (range 8) 598 | -10/Mines | Received a Mining Laser from a helpful Derelict 769 | -10/Mines | Assisted by bots powering up and referring to "LRC-V3" 797 | -10/Mines | Assembled infested the area 802 | -10/Mines | Assisted by a Guerilla fighting off Assembled 855 | -10/Mines | Core integrity fell below 20% 856 | -10/Mines | Destroyed by D-53 Grenadier with Mini Grenade Launcher Last Messages --------------- 00802_ HV Slug penetrates Wall. 00813_ K-01 Serf collects debris. 00814_ as-14514 sneak attacks. 00814_ K-01 Serf system corrupted by crushing effect. 00815_ K-01 Serf system terminally corrupted. 00815_ Wheel destroyed. 00825_ as-29393 destroyed. 00831_ as-60683 destroyed. 00831_ Switching to secondary target: as-98593. 00837_ as-98593 destroyed. 00841_ Acquired 19 matter. 00846_ Mercenary 1a destroyed. 00846_ Acquired 20 matter. 00848_ Acquired 12 matter. 00852_ Trooper 1b heat short circuits Aluminum Leg. 00853_ as-83579 destroyed. 00854_ Trooper 1b heat damages Aluminum Leg, Imp. Heat Sink, Particle Gun, Broken Aluminum Leg. 00854_ QA-LW8(g) destroyed. 00854_ Trooper 1b destroyed. Map ----- +----------------------------------------------------+ | #?????# #????????????????????????????????? | | #??????# #????????????????????????????????? | | #??????## ##????????????????????????????????? | | #???????#####?????????????????????????????????? | | ###?????????????????????????????????????????????? | | #####???????????????????????????????????????????? | | #???????????????????????????????????????????? | | #???????????????????????????????????????????? | | ### #???????????????????????????????????????????? | | ??# #???????????????????????????????????????????? | | ??# #???????????????????????????????????????????? | | ??# #???????????????????????????????????????????? | | ??# #######?????????????????????????????????????? | | ??# #?????????????????????????????????????? | | ??####### ###???????????????????????????????????? | | ????????# ##??????????????????????????????????? | | ????????## #??????????????????????????????????? | | ??????###### #??????????????????????????????????? | | ?????## #### ##????????????????????????????????? | | ?##### ## ???????????????????????????????? | | ?# = ####??######??#???????????????? | | ?# % ### # #? #???????????????? | | ?# d% ##a#???????????????? | | ?#### d! a a #???????????????? | | ????# ### % ####???????????????? | | ????# ########????# @ #######"#####???????? | | ????## ##???????????# % %%zaa%%a]! % ? | | ?????######????????????# ######a#;####???????? | | ???????????????????????## ####???????????????????? | | ????????????????????????##???????????????????????? | | | | | | | | | | | | | | | | | | | | | | | | | | | | | | | | | | | | | | | | | +----------------------------------------------------+ Best States ------------- Heat Dissipation 25 Energy Generation 10 Energy Capacity 250 Matter Stores 323 Matter Capacity 350 Sight Range 16 Terrain Scan Density 10 Resistance: KI 20 Resistance: TH 20 Resistance: EX 20 Resistance: EM 20 Resistance: I 20 Resistance: S 20 Resistance: P 20 Evasion (%) 42 Recoil Reduction 2 Offensive Hacking 10 Item Schematics ----------------- None Robot Schematics ------------------ None Fabricated ------------ Nothing Alien Tech Used ----------------- None Achievements -------------- None Challenges ------------ None Game ------ Seed CoordinationHelicalPick Manual? 0 Play Time 00:14:36 Cumulative 111.8 hours Start 2021.04.30 @ 21:59:28 End 2021.04.30 @ 22:13:07 Sessions 1 Manual Loads 0 Difficulty Adventurer Special Mode None Game No. 30 Rogue 0 Adventurer 30 Explorer 0 Win Type - Total 0 Types 0/0/0/0/0/0/0/0/0 Lore% 51 Gallery% 57 Achievement% 41 Wizard Run 0 Options --------- ASCII 0 Keyboard 1 Movement Numpad Keybinds 0 Fullscreen 1 Font 14/X11Bold Map View 84x54 Tactical HUD 1 Map Filters NONE Filters NONE Steam 1 RUN: a7aa283e-6cea-4df2-b497-94b5ed5de17e